[Event "31st MPL National U18G Chess-ch 2022"]
[Site "Pollachi"]
[Date "2022.04.22"]
[Round "9.5"]
[White "Udagedara, Sandali Kanishka"]
[Black "Rebecca Jesumarian"]
[Result "1-0"]
[ECO "A36"]
[WhiteElo "1510"]
[BlackElo "1814"]
[Annotator "NA RC COMBH"]
[PlyCount "127"]
[EventDate "2022.04.18"]
[EventCountry "IND"]
[SourceTitle "playchess.com"]
[Source "ChessBase"]
[SourceQuality "1"]
[TimeControl "5400+30"]

1. c4 {[%emt 0:00:25]} Nf6 {[%emt 0:00:32]} 2. Nc3 {[%emt 0:00:14]} g6 {[%emt 0:00:05]} 3. g3 {[%emt 0:01:24]} Bg7 {[%emt 0:00:12]} 4. Bg2 {[%emt 0:00:17]} O-O {[%emt 0:00:12]} 5. d3 {[%emt 0:00:15]} d6 {[%emt 0:00:10]} 6. e4 {[%emt 0:00:32]} c5 {[%emt 0:00:20]} 7. Nge2 {[%emt 0:01:48]} Nc6 {[%emt 0:00:17]} 8. O-O {[%emt 0:00:52]} a6 {[%emt 0:00:23]} 9. h3 {[%emt 0:05:36]} Rb8 {[%emt 0:00:44]} 10. Be3 {[%emt 0:02:35]} b5 {[%emt 0:04:29]} 11. b3 {[%emt 0:02:44]} Ne8 {[%emt 0:02:32]} 12. Rc1 {[%emt 0:01:31]} Nc7 {[%emt 0:04:18]} 13. cxb5 {[%emt 0:04:20]} axb5 {[%emt 0:03:34]} 14. d4 {[%emt 1:14:57]} Nxd4 {[%emt 0:03:59]} 15. Bxd4 {[%emt 0:00:00]} cxd4 {[%emt 0:00:31]} 16. Nxd4 {[%emt 0:00:00]} Bd7 {[%emt 0:04:28]} 17. Qd2 {[%emt 0:00:00]} b4 {[%emt 0:11:42]} 18. Nd5 {[%emt 0:00:00]} Ne6 {[%emt 0:06:31]} (18... Nxd5 $11 19. exd5 Bxd4 20. Qxd4 Re8) 19. Ne2 {[%emt 0:00:00]} (19. Nc2 $14 {might be stronger.}) 19... Nc5 {[%emt 0:08:49]} 20. Rfd1 {[%emt 0:00:00]} Bb5 {[%emt 0:04:40]} (20... Bc6 $11 {keeps the balance.}) 21. Qe3 $2 {[%emt 0:00:00]} (21. Nd4 $16 {is forced if you want to stay better.}) 21... Na6 {[%emt 0:17:24]} (21... e6 $15 {stays ahead.} 22. Nxb4 Qa5) 22. Nd4 {[%emt 0:00:00]} e6 {[%emt 0:01:41]} 23. Nxb5 {[%emt 0:00:00]} Rxb5 {[%emt 0:00:11] [#]} 24. Nf4 {[%emt 0:00:00]} (24. Qe2 $1 $16 Rc5 (24... Rb8 25. Qxa6) 25. Rxc5 (25. Qxa6 Rxc1 26. Rxc1 exd5 $14) 25... Nxc5 26. Nxb4) 24... Qb8 {[%emt 0:02:15]} (24... Qb6 $11) 25. Rc6 {[%emt 0:00:00]} Ra5 {[%emt 0:04:42]} 26. Rdxd6 {[%emt 0:00:00]} Nc7 {[%emt 0:02:10]} 27. Rb6 {[%emt 0:00:00]} (27. Rd7 $16 Nb5 28. Rb6) 27... Qa7 {[%emt 0:00:56]} 28. Rxb4 {[%emt 0:00:00]} Qxe3 {[%emt 0:00:17]} 29. fxe3 {[%emt 0:00:00]} Rxa2 {[%emt 0:00:11]} 30. Rb7 {[%emt 0:00:00]} Be5 {[%emt 0:02:53]} 31. Rd7 {[%emt 0:00:00]} Na6 $11 {[%emt 0:00:46]} 32. Ra7 {[%emt 0:00:00]} Nb4 {[%emt 0:05:50]} 33. Rxa2 {[%emt 0:00:00]} Nxa2 {[%emt 0:00:05]} 34. Rb7 {[%emt 0:00:00]} Rc8 {[%emt 0:01:38]} 35. Kf2 {[%emt 0:00:00]} Nc1 {[%emt 0:02:08]} 36. Bf1 {[%emt 0:00:32]} Rc2+ {[%emt 0:00:36]} 37. Kf3 {[%emt 0:00:15]} Rb2 {[%emt 0:00:13]} 38. Bc4 {[%emt 0:00:51]} Bc3 {[%emt 0:02:00]} 39. Rb5 {[%emt 0:05:52]} Be1 {[%emt 0:02:10]} 40. e5 {[%emt 0:01:35]} h6 {[%emt 0:00:36]} 41. g4 {[%emt 0:01:19]} Rb1 {[%emt 0:01:21]} 42. Ng2 {[%emt 0:03:36]} (42. Rc5 $16) 42... Bc3 {[%emt 0:00:16]} 43. Nf4 {[%emt 0:00:00]} Be1 {[%emt 0:00:31]} 44. Ke4 {[%emt 0:00:00]} Na2 {[%emt 0:00:40]} 45. Rb8+ {[%emt 0:00:00]} Kg7 {[%emt 0:00:04]} 46. Nd3 {[%emt 0:00:31]} Bd2 {[%emt 0:00:48]} 47. Rb7 {[%emt 0:00:55]} Kg8 {[%emt 0:00:27]} 48. Rd7 {[%emt 0:00:47]} Nc3+ {[%emt 0:00:54]} 49. Kf3 {[%emt 0:00:24]} Rf1+ {[%emt 0:00:16]} 50. Nf2 {[%emt 0:00:06]} Rb1 {[%emt 0:01:47]} 51. Rxd2 {[%emt 0:00:09]} Kg7 {[%emt 0:00:11]} 52. Rc2 {[%emt 0:00:11]} Nd5 {[%emt 0:00:06]} 53. Ne4 {[%emt 0:01:02]} Nb4 {[%emt 0:00:34]} 54. Rd2 {[%emt 0:00:13]} Nc6 {[%emt 0:00:07]} 55. Nc5 {[%emt 0:01:02]} Nxe5+ {[%emt 0:00:07]} 56. Ke4 {[%emt 0:00:04]} Nc6 {[%emt 0:00:14]} 57. Rd7 {[%emt 0:00:32]} Kg8 {[%emt 0:00:12]} 58. Rc7 {[%emt 0:00:20]} Nb4 {[%emt 0:00:08]} 59. Ke5 {[%emt 0:00:19]} Rb2 {[%emt 0:00:14]} 60. Ne4 {[%emt 0:00:17]} Rh2 {[%emt 0:00:33]} 61. Nf6+ {[%emt 0:00:33]} Kg7 {[%emt 0:00:17]} 62. Rc8 {[%emt 0:01:31]} h5 {[%emt 0:00:25]} 63. g5 {[%emt 0:00:01]} Rxh3 {[%emt 0:00:12]} 64. Rg8# {[%emt 0:02:03]} 1-0

[Event "31st MPL National U18G Chess-ch 2022"]
[Site "Pollachi"]
[Date "2022.04.22"]
[Round "9.6"]
[White "Ishvi Aggarwal"]
[Black "Saniya Rafique Tadavi"]
[Result "1-0"]
[ECO "E63"]
[WhiteElo "1833"]
[BlackElo "1298"]
[Annotator "NA RC COMBH"]
[PlyCount "161"]
[EventDate "2022.04.18"]
[EventCountry "IND"]
[SourceTitle "playchess.com"]
[Source "ChessBase"]
[SourceQuality "1"]
[TimeControl "5400+30"]

1. d4 {[%emt 0:00:02]} Nf6 {[%emt 0:00:08]} 2. c4 {[%emt 0:00:02]} g6 {[%emt 0:00:06]} 3. g3 {[%emt 0:00:03]} Bg7 {[%emt 0:00:06]} 4. Bg2 {[%emt 0:00:03]} O-O {[%emt 0:00:06]} 5. Nc3 {[%emt 0:00:02]} d6 {[%emt 0:00:08]} 6. Nf3 {[%emt 0:00:03]} Nc6 {[%emt 0:00:23]} 7. O-O {[%emt 0:00:07]} a6 {[%emt 0:00:17]} 8. e4 {[%emt 0:00:19] 8.b3 gains popularity.} Bg4 {[%emt 0:01:49]} 9. Be3 {[%emt 0:01:00]} e5 {[%emt 0:01:03]} 10. d5 {[%emt 0:00:34]} Na5 {[%emt 0:07:54]} 11. Qd3 {[%emt 1:33:45]} c5 {[%emt 0:00:26]} 12. dxc6 {[%emt 0:00:00] [#]} Nxc6 $146 {[%emt 0:00:13]} ({Predecessor:} 12... bxc6 13. Rfd1 Qc8 14. b4 Nb7 15. Rac1 Nd7 16. h3 Bxf3 17. Bxf3 f5 18. Bg5 Rf7 19. exf5 gxf5 {1-0 (48) Ozturk Orenli,K (2174)-Kulon,K (2139) Kemer 2007}) 13. h3 {[%emt 0:00:00]} Bxf3 {[%emt 0:00:49]} 14. Bxf3 {[%emt 0:00:00]} Ne8 {[%emt 0:05:07]} 15. Bg2 {[%emt 0:00:00]} Nc7 {[%emt 0:04:18]} 16. Rfd1 {[%emt 0:00:00]} Nd4 {[%emt 0:00:52]} 17. Bxd4 {[%emt 0:00:00]} exd4 {[%emt 0:00:06]} 18. Ne2 {[%emt 0:00:00]} Ne6 {[%emt 0:00:12]} 19. b4 {[%emt 0:00:00]} a5 {[%emt 0:02:18]} 20. a3 {[%emt 0:00:00]} axb4 {[%emt 0:01:37]} 21. axb4 {[%emt 0:00:00]} Qb6 {[%emt 0:00:56]} 22. Rxa8 {[%emt 0:00:00]} Rxa8 {[%emt 0:00:07]} 23. Rb1 {[%emt 0:00:00]} Ra4 {[%emt 0:00:39]} 24. Qb3 {[%emt 0:00:00]} Qa7 {[%emt 0:00:21]} 25. Nc1 {[%emt 0:00:00]} Ra3 {[%emt 0:00:59]} 26. Qd1 {[%emt 0:00:00]} Nd8 {[%emt 0:17:46]} 27. Nd3 {[%emt 0:00:00]} Qa6 {[%emt 0:00:24]} 28. Rc1 {[%emt 0:00:00]} (28. Bf1 $11) 28... Rc3 {[%emt 0:00:52]} 29. b5 {[%emt 0:00:00]} Qa3 {[%emt 0:00:43]} (29... Qa2 {was preferrable.}) 30. Bf1 $1 {[%emt 0:00:00]} ({Of course not} 30. Rxc3 dxc3 31. e5 dxe5 $17) 30... Rxc1 {[%emt 0:04:01]} 31. Qxc1 {[%emt 0:00:00]} Qc3 {[%emt 0:51:14] [#]} (31... Qxc1 $11 {keeps the balance.} 32. Nxc1 Ne6) 32. f4 $2 {[%emt 0:00:00]} ({Better is} 32. Qg5 $1 $16 {[%cal Rg5d8]} Qa5 33. Qe7) 32... Ne6 {[%emt 0:00:00]} 33. Be2 {[%emt 0:00:00]} Qxc1+ {[%emt 0:00:00]} 34. Nxc1 {[%emt 0:00:00]} Nc5 {[%emt 0:00:00]} 35. Bd3 {[%emt 0:00:00]} Kf8 {[%emt 0:00:00]} 36. Kf2 {[%emt 0:00:00]} Ke7 {[%emt 0:00:00]} 37. Ke2 {[%emt 0:00:00]} Kd8 {[%emt 0:00:00]} 38. Kd1 {[%emt 0:00:00]} g5 {[%emt 0:00:00]} 39. Ke2 {[%emt 0:00:00]} gxf4 {[%emt 0:00:00]} 40. gxf4 {[%emt 0:00:00]} Bh6 {[%emt 0:00:00]} 41. Kf3 {[%emt 0:00:00]} Kc7 {[%emt 0:00:00]} 42. Bc2 {[%emt 0:00:00]} Kb6 {[%emt 0:00:00]} 43. Nd3 {[%emt 0:00:00]} Ne6 {[%emt 0:00:00]} 44. Kg4 {[%emt 0:00:00]} Bg7 {[%emt 0:00:00]} 45. Kf5 {[%emt 0:00:00]} Nc5 {[%emt 0:00:00]} 46. e5 {[%emt 0:00:00]} dxe5 {[%emt 0:00:00]} 47. fxe5 {[%emt 0:00:00]} Ne6 {[%emt 0:00:00]} (47... Nxd3 $11 {keeps the balance.} 48. Bxd3 Kc5) 48. h4 {[%emt 0:00:00]} ({White should try} 48. Ke4 $16) 48... Bh8 {[%emt 0:00:00]} (48... Nc5 $11 {keeps the balance.}) 49. Ke4 {[%emt 0:00:00]} Bg7 {[%emt 0:00:00]} 50. Kd5 {[%emt 0:00:00]} Bf8 {[%emt 0:00:00]} 51. Bd1 {[%emt 0:00:00]} Be7 {[%emt 0:00:00] [#]} 52. h5 $1 {[%emt 0:00:00]} Ng7 {[%emt 0:00:00]} 53. Bg4 {[%emt 0:01:21]} f5 {[%emt 0:00:41]} 54. h6 {[%emt 0:05:52]} Ne6 {[%emt 0:00:44]} 55. Bxf5 {[%emt 0:05:40]} Nc7+ {[%emt 0:01:41]} 56. Kxd4 {[%emt 0:00:31]} Bf8 {[%emt 0:09:24]} 57. Bxh7 {[%emt 0:04:59]} Bxh6 {[%emt 0:00:00]} 58. Bf5 {[%emt 0:00:02]} Bf8 {[%emt 0:00:00]} 59. Bd7 {[%emt 0:00:27]} Na8 {[%emt 0:00:00]} 60. c5+ {[%emt 0:01:14]} Kc7 {[%emt 0:00:00]} 61. Bg4 {[%emt 0:00:27]} b6 {[%emt 0:00:00]} 62. c6 {[%emt 0:02:46]} Kd8 {[%emt 0:00:00]} 63. Nf4 {[%emt 0:00:15]} Bc5+ {[%emt 0:00:00]} 64. Kc4 $2 {[%emt 0:00:24]} (64. Kd5 Nc7+ 65. Ke4) 64... Ke7 {[%emt 0:00:00]} 65. Nd5+ {[%emt 0:00:12]} Kd8 {[%emt 0:00:00]} 66. Kd3 {[%emt 0:00:27]} Bf2 {[%emt 0:00:00]} 67. Ke4 {[%emt 0:00:16]} Bg3 {[%emt 0:00:00]} 68. Kf5 {[%emt 0:00:22]} Bf2 {[%emt 0:01:35]} 69. Ke6 {[%emt 0:01:00]} Bc5 {[%emt 0:00:15]} 70. Kf7 {[%emt 0:00:22]} Ba3 {[%emt 0:02:17]} 71. Be2 {[%emt 0:01:16]} Bc5 {[%emt 0:01:17]} 72. e6 {[%emt 0:01:11]} Bd6 {[%emt 0:00:26]} 73. Bc4 {[%emt 0:00:19]} Bc5 {[%emt 0:00:24]} 74. e7+ {[%emt 0:00:33]} Bxe7 {[%emt 0:02:46]} 75. Nxe7 {[%emt 0:00:02]} Nc7 {[%emt 0:00:00]} 76. Nd5 {[%emt 0:00:28]} Na8 {[%emt 0:00:00]} 77. Ke6 {[%emt 0:00:19]} Kc8 {[%emt 0:00:00]} 78. Ke7 {[%emt 0:00:13]} Kb8 {[%emt 0:00:00]} 79. Kd8 {[%emt 0:00:24]} Ka7 {[%emt 0:00:00]} 80. c7 {[%emt 0:00:16]} Nxc7 {[%emt 0:03:00]} 81. Kxc7 {[%emt 0:00:09]} 1-0

[Event "31st MPL National U18G Chess-ch 2022"]
[Site "Pollachi"]
[Date "2022.04.22"]
[Round "10.1"]
[White "Bhagyashree Patil"]
[Black "Rindhiya V"]
[Result "1/2-1/2"]
[ECO "C54"]
[WhiteElo "1974"]
[BlackElo "1949"]
[Annotator "TA"]
[PlyCount "84"]
[EventDate "2022.04.18"]
[EventCountry "IND"]
[SourceTitle "playchess.com"]
[Source "ChessBase"]
[SourceQuality "1"]
[TimeControl "5400+30"]

{[%evp 14,84,-21,-21,21,22,27,16,21,0,0,0,0,0,0,0,0,0,0,0,0,0,0,0,0,0,0,0,0,0,0,0,0,0,0,0,0,0,0,0,0,0,0,-10,0,0,0,0,0,0,0,0,0,0,0,0,0,0,0,0,0,0,0,0,0,0,0,0,0,0,0,0,0]} 1. e4 {[%emt 0:00:07]} e5 {[%emt 0:00:03]} 2. Nf3 {[%emt 0:00:04]} Nc6 {[%emt 0:00:04]} 3. Bc4 {[%emt 0:00:03]} Bc5 {[%emt 0:00:04]} 4. c3 {[%emt 0:00:04]} Nf6 {[%emt 0:00:04]} 5. d3 {[%emt 0:00:02]} d6 {[%emt 0:00:06]} 6. Be3 {[%emt 0:00:31]} Bxe3 {[%emt 0:07:35]} 7. fxe3 {[%emt 0:00:02]} O-O {[%emt 0:00:19]} 8. O-O {[%emt 0:01:14]} Be6 {[%emt 0:13:00] C54: Giuoco Piano: 4 c3 Nf6, main lines with 5 d4 and 5 d3.} 9. Bxe6 {[%emt 0:03:35]} fxe6 {[%emt 0:00:00][%cal Bf7e6,Be6d5,Bd5c4][%mdl 32]} 10. Nbd2 {[%emt 0:00:29]} d5 {[%emt 0:06:59] The position is equal.} 11. Qe2 {[%emt 0:04:41] [#]} Qd6 $146 {[%emt 0:02:07]} ({Predecessor:} 11... Qe7 12. Rad1 Rad8 13. b4 d4 14. exd4 exd4 15. cxd4 Qxb4 16. Nb3 a5 17. Rb1 Qe7 {0-1 (43) Bhagyashree,P (1742)-Nayanikaa,M (1447) Jalandhar 2017}) 12. Rad1 {[%emt 0:02:41]} Ne7 {[%emt 0:08:45]} 13. d4 {[%emt 0:07:54]} Ng6 {[%emt 0:06:59]} 14. exd5 {[%emt 0:09:01]} exd5 {[%emt 0:14:41]} 15. Nc4 {[%emt 0:03:53]} dxc4 {[%emt 0:11:43]} 16. dxe5 {[%emt 0:00:16]} Qc5 {[%emt 0:01:23]} 17. exf6 {[%emt 0:00:24]} Rxf6 {[%emt 0:01:12]} 18. Nd4 {[%emt 0:03:00]} Raf8 {[%emt 0:04:41]} 19. Rxf6 {[%emt 0:00:25]} Rxf6 {[%emt 0:00:03]} 20. Rf1 {[%emt 0:00:15]} Rxf1+ $1 {[%emt 0:00:28]} 21. Qxf1 {[%emt 0:00:21]} Qd5 {[%emt 0:03:04]} 22. Qf3 {[%emt 0:04:24]} Qxf3 {[%emt 0:04:21]} 23. Nxf3 $11 {[%emt 0:00:11][%mdl 4096] Endgame KN-KN} h6 {[%emt 0:02:23]} 24. Kf2 {[%emt 0:00:12]} Kf7 {[%emt 0:01:39]} 25. g3 {[%emt 0:00:10]} a6 {[%emt 0:05:23]} 26. e4 {[%emt 0:00:26]} c5 {[%emt 0:00:43]} 27. Ke3 {[%emt 0:00:42]} Ke6 {[%emt 0:00:14]} 28. Kd2 {[%emt 0:02:50]} Ne5 {[%emt 0:01:38]} 29. Nxe5 {[%emt 0:00:39]} Kxe5 {[%emt 0:00:02] KP-KP} 30. Ke3 {[%emt 0:00:07]} b5 {[%emt 0:03:55]} 31. a3 {[%emt 0:01:28]} g5 {[%emt 0:01:02]} 32. g4 {[%emt 0:00:52]} a5 {[%emt 0:00:42]} 33. Kf3 {[%emt 0:00:11]} a4 {[%emt 0:00:56]} 34. Ke3 $1 {[%emt 0:00:02]} Kd6 {[%emt 0:00:24]} 35. Kf3 {[%emt 0:00:05]} Ke6 {[%emt 0:00:05]} 36. Ke3 {[%emt 0:00:03]} Ke5 {[%emt 0:00:03]} 37. Kf3 {[%emt 0:00:04]} Ke6 {[%emt 0:01:27]} 38. Ke3 {[%emt 0:00:03]} Kf6 {[%emt 0:00:24]} 39. Kf3 {[%emt 0:00:02]} Ke6 {[%emt 0:00:22]} 40. Ke3 {[%emt 0:00:01]} Ke5 {[%emt 0:00:00]} 41. Kf3 {[%emt 0:00:02]} Ke6 {[%emt 0:00:50]} 42. Ke3 {[%emt 0:00:11]} Ke5 {[%emt 0:00:02] An even fight not without its subleties.  Weighted Error Value: White=0.01 (flawless) /Black=0.02 (flawless)} 1/2-1/2

[Event "31st MPL National U18G Chess-ch 2022"]
[Site "Pollachi"]
[Date "2022.04.22"]
[Round "10.2"]
[White "Keerti Shree Reddy"]
[Black "Udagedara, Sandali Kanishka"]
[Result "0-1"]
[ECO "D01"]
[WhiteElo "1721"]
[BlackElo "1510"]
[Annotator "NA RC COMBH"]
[PlyCount "116"]
[EventDate "2022.04.18"]
[EventCountry "IND"]
[SourceTitle "playchess.com"]
[Source "ChessBase"]
[SourceQuality "1"]
[TimeControl "5400+30"]

1. d4 {[%emt 0:02:16]} Nf6 {[%emt 0:00:05]} 2. Nc3 {[%emt 0:00:10]} d5 {[%emt 0:04:05]} 3. Bg5 {[%emt 0:00:07]} Bf5 {[%emt 0:01:49]} 4. f3 {[%emt 0:00:20]} Nbd7 {[%emt 0:03:55]} 5. Qd2 {[%emt 0:00:15]} e6 {[%emt 0:01:55]} 6. e4 {[%emt 0:01:52]} dxe4 {[%emt 0:00:03]} 7. fxe4 {[%emt 0:00:11]} Bxe4 {[%emt 0:00:39]} 8. Qf4 {[%emt 0:14:19]} Bb4 {[%emt 0:04:53]} 9. Qd2 {[%emt 0:06:41]} c6 {[%emt 0:10:08]} 10. Nge2 {[%emt 0:02:24]} Bg6 {[%emt 0:02:59]} 11. a3 {[%emt 0:09:34]} Qa5 {[%emt 0:02:30]} 12. Rc1 {[%emt 0:04:07]} Bxc3 {[%emt 0:05:20]} 13. Nxc3 {[%emt 0:00:07]} Nd5 {[%emt 0:02:55]} 14. Nxd5 {[%emt 0:05:06]} Qxd2+ {[%emt 0:00:03]} 15. Kxd2 {[%emt 0:00:11]} cxd5 {[%emt 0:01:02]} 16. c4 {[%emt 0:04:59]} f6 {[%emt 0:06:02]} 17. Bf4 {[%emt 0:10:07]} Rc8 {[%emt 0:05:10]} 18. Be2 {[%emt 0:02:54]} Kf7 {[%emt 0:05:49]} 19. cxd5 {[%emt 0:05:23]} exd5 {[%emt 0:00:08]} 20. Bg4 {[%emt 0:06:59]} f5 {[%emt 0:01:19]} 21. Bf3 {[%emt 0:00:18]} Nf6 {[%emt 0:01:14]} 22. Be5 {[%emt 0:01:31]} Ne4+ {[%emt 0:02:33]} 23. Bxe4 {[%emt 0:00:10]} dxe4 {[%emt 0:02:00]} 24. Ke3 {[%emt 0:05:18]} Rhe8 {[%emt 0:03:19]} 25. Rhf1 {[%emt 0:01:40]} Rxc1 {[%emt 0:08:10]} 26. Rxc1 {[%emt 0:00:02]} Re7 {[%emt 0:00:01]} 27. Bb8 {[%emt 0:03:15]} a6 {[%emt 0:01:40]} 28. d5 {[%emt 0:02:06]} Bh5 {[%emt 0:03:24]} 29. Bf4 {[%emt 0:02:03]} h6 {[%emt 0:01:23]} 30. h4 {[%emt 0:00:50]} Kf6 {[%emt 0:01:02]} 31. Bc7 {[%emt 0:01:57]} Rd7 {[%emt 0:01:51]} 32. d6 {[%emt 0:00:13]} g5 {[%emt 0:02:12]} 33. hxg5+ {[%emt 0:00:46]} hxg5 {[%emt 0:00:20]} 34. g3 {[%emt 0:00:46]} Bf7 {[%emt 0:00:56]} 35. Rc5 {[%emt 0:04:16]} b6 {[%emt 0:04:29]} 36. Rc6 {[%emt 0:00:40]} Ke5 {[%emt 0:00:02]} 37. Bxb6 {[%emt 0:01:31]} f4+ {[%emt 0:00:14]} 38. gxf4+ {[%emt 0:00:37]} gxf4+ {[%emt 0:00:01]} 39. Kf2 {[%emt 0:00:25]} Bd5 {[%emt 0:00:25]} 40. Rc8 {[%emt 0:01:05]} Kxd6 {[%emt 0:01:13]} 41. Bc5+ {[%emt 0:01:01]} Ke5 {[%emt 0:00:16]} 42. Rh8 {[%emt 0:00:21]} Bb3 {[%emt 0:01:19]} 43. Rh5+ {[%emt 0:00:31]} Kf6 {[%emt 0:00:33]} 44. Be3 {[%emt 0:01:20]} fxe3+ {[%emt 0:05:01]} 45. Kxe3 {[%emt 0:00:01]} Bd1 {[%emt 0:00:10]} 46. Ra5 {[%emt 0:01:19]} Bf3 {[%emt 0:00:14]} 47. Rxa6+ {[%emt 0:00:21]} Kf5 {[%emt 0:00:01]} 48. b4 {[%emt 0:01:17]} Rd3+ {[%emt 0:00:26]} 49. Kf2 {[%emt 0:00:01]} Ke5 {[%emt 0:00:26]} 50. Ra5+ {[%emt 0:00:13]} Kd4 {[%emt 0:00:09]} 51. Ra7 {[%emt 0:00:15]} Rd2+ {[%emt 0:00:07]} 52. Kg3 {[%emt 0:00:26]} Ke3 {[%emt 0:00:29]} 53. b5 {[%emt 0:00:15]} Rg2+ {[%emt 0:00:11]} 54. Kh4 {[%emt 0:00:02]} Kf2 {[%emt 0:00:26]} 55. b6 {[%emt 0:00:41]} Rg4+ {[%emt 0:00:51]} 56. Kh5 {[%emt 0:00:26]} Rg7+ {[%emt 0:00:02]} 57. Kh6 {[%emt 0:00:14]} Re7 {[%emt 0:11:01]} 58. Rb7 Rxb7 {[%emt 0:00:00]} 0-1

[Event "31st MPL National U18G Chess-ch 2022"]
[Site "Pollachi"]
[Date "2022.04.22"]
[Round "10.3"]
[White "Anupam M Sreekumar"]
[Black "Ishvi Aggarwal"]
[Result "1/2-1/2"]
[ECO "C54"]
[WhiteElo "1724"]
[BlackElo "1833"]
[Annotator "NA RC COMBH"]
[PlyCount "68"]
[EventDate "2022.04.18"]
[EventCountry "IND"]
[SourceTitle "playchess.com"]
[Source "ChessBase"]
[SourceQuality "1"]
[TimeControl "5400+30"]

1. e4 {[%emt 0:00:04]} e5 {[%emt 0:00:04]} 2. Nf3 {[%emt 0:00:08]} Nc6 {[%emt 0:00:03]} 3. Bc4 {[%emt 0:00:07]} Bc5 {[%emt 0:00:04]} 4. c3 {[%emt 0:00:06]} Nf6 {[%emt 0:00:03]} 5. d3 {[%emt 0:00:07]} O-O {[%emt 0:00:05]} 6. O-O {[%emt 0:00:08]} d5 {[%emt 0:00:03]} 7. exd5 {[%emt 0:00:08]} Nxd5 {[%emt 0:00:03]} 8. Re1 {[%emt 0:00:11]} Bg4 {[%emt 0:00:06]} 9. Nbd2 {[%emt 0:00:10]} Nb6 {[%emt 0:00:04]} 10. h3 {[%emt 0:00:10]} Bh5 {[%emt 0:00:01]} 11. Bb3 {[%emt 0:00:21] is now more promising than 11.Bb5.} Qxd3 {[%emt 0:00:40]} 12. Nxe5 {[%emt 0:00:11]} Qf5 {[%emt 0:00:31]} 13. Nef3 {[%emt 0:00:25]} Rad8 {[%emt 0:00:49]} 14. Qe2 {[%emt 0:00:26]} Qc8 {[%emt 0:00:14]} 15. Ne4 {[%emt 0:06:13]} Rfe8 {[%emt 0:05:14] [#]} 16. Bf4 $146 {[%emt 0:06:57]} ({Predecessor:} 16. Bg5 Be7 17. Bf4 Nd5 18. Bg3 {½-½ (18) Kudrin,S (2420)-Sarkar,J (2366) Chess.com INT 2020}) 16... Na5 {[%emt 0:06:33]} 17. Bc2 {[%emt 0:09:32]} f5 {[%emt 0:04:59]} 18. Qb5 {[%emt 0:02:55]} fxe4 {[%emt 0:04:32]} 19. Qxa5 {[%emt 0:03:56]} exf3 {[%emt 0:33:48]} 20. Qxc5 {[%emt 0:00:47]} Bf7 {[%emt 0:00:11]} 21. Re7 {[%emt 0:10:18]} ({Don't play} 21. Bxc7 Nd5 22. Bd6 Qxc5 23. Bxc5 b6 $14) ({Reject} 21. gxf3 $6 Qxh3 22. Qg5 (22. Qxc7 Nd5 $17) (22. Bxc7 Qxf3 23. Bxd8 Qg4+ 24. Kh2 Qf4+ 25. Kh3 Qf3+ 26. Kh4 Qf4+ 27. Kh3 Qf3+ 28. Kh4 Qf4+ 29. Kh3 $11) 22... h6 $11) (21. Qxc7 $16 fxg2 22. Rxe8+ (22. Kxg2 Qxc7 23. Bxc7 Rxe1 $14) 22... Rxe8 23. Qxc8 (23. Kxg2 Qxc7 24. Bxc7 Re2 $14) 23... Rxc8 24. Kxg2) 21... Nd5 {[%emt 0:03:22]} 22. Rxe8+ $11 {[%emt 0:12:13]} ({Don't go for} 22. Bxh7+ $2 Kxh7 23. Rxf7 Qe6 24. Bxc7 Qxf7 $19) 22... Rxe8 {[%emt 0:00:01]} 23. Qd4 $2 {[%emt 0:00:22] [#]} (23. Bg3 $11) 23... Nxf4 $2 {[%emt 0:01:38]} (23... c5 $1 $19 {[%cal Rc5d4]} 24. Qc4 b5 25. Bxh7+ Kxh7 26. Qd3+ Kg8 27. Qxf3 Qf5) 24. Qxf4 {[%emt 0:00:32]} fxg2 {[%emt 0:01:39]} 25. Kxg2 {[%emt 0:04:23]} Bd5+ {[%emt 0:01:51]} 26. Kh2 {[%emt 0:00:42]} Rf8 {[%emt 0:03:28]} 27. Qh4 {[%emt 0:03:23]} g6 {[%emt 0:01:03]} 28. Rd1 {[%emt 0:01:29]} c6 {[%emt 0:00:34]} 29. c4 {[%emt 0:01:11]} Qc7+ {[%emt 0:00:54]} 30. Kg1 {[%emt 0:00:17]} Bf3 {[%emt 0:03:55]} 31. Re1 {[%emt 0:01:05]} Qf4 {[%emt 0:00:47]} 32. Qxf4 {[%emt 0:05:43]} Rxf4 {[%emt 0:00:02]} 33. Kh2 {[%emt 0:00:05]} c5 {[%emt 0:01:30]} 34. Kg3 {[%emt 0:01:01]} Rf7 {[%emt 0:28:39]} 1/2-1/2

[Event "31st MPL National U18G Chess-ch 2022"]
[Site "Pollachi"]
[Date "2022.04.22"]
[Round "10.4"]
[White "Meenatchi Rajam V"]
[Black "Chinnam Vyshnavi"]
[Result "0-1"]
[ECO "D59"]
[WhiteElo "1530"]
[BlackElo "1721"]
[Annotator "NA RC COMBH"]
[PlyCount "96"]
[EventDate "2022.04.18"]
[EventCountry "IND"]
[SourceTitle "playchess.com"]
[Source "ChessBase"]
[SourceQuality "1"]
[TimeControl "5400+30"]

1. d4 {[%emt 0:00:02]} Nf6 {[%emt 0:00:06]} 2. Nf3 {[%emt 0:00:05]} d5 {[%emt 0:00:26]} 3. c4 {[%emt 0:00:06]} e6 {[%emt 0:00:14]} 4. Nc3 {[%emt 0:00:05]} Be7 {[%emt 0:00:46]} 5. Bg5 {[%emt 0:00:08]} h6 {[%emt 0:00:06]} 6. Bh4 {[%emt 0:00:05]} O-O {[%emt 0:00:24]} 7. e3 {[%emt 0:00:09]} b6 {[%emt 0:00:38]} 8. cxd5 {[%emt 0:00:13]} Nxd5 {[%emt 0:00:29]} 9. Bxe7 {[%emt 0:03:13]} Qxe7 {[%emt 0:00:11]} 10. Nxd5 {[%emt 0:01:28]} exd5 {[%emt 0:00:03]} 11. Rc1 {[%emt 0:00:14]} Bb7 {[%emt 0:13:34]} 12. Bd3 {[%emt 0:02:42]} c5 {[%emt 0:02:21]} 13. dxc5 {[%emt 0:01:47]} bxc5 {[%emt 0:00:09]} 14. O-O {[%emt 0:00:47]} Nd7 {[%emt 0:03:28]} 15. b3 {[%emt 0:11:32]} Rfd8 {[%emt 0:08:37]} 16. Qe2 {[%emt 0:01:53]} Nf6 {[%emt 0:08:00]} 17. Ba6 {[%emt 0:04:31]} Ne4 {[%emt 0:03:50]} 18. Rfd1 {[%emt 0:03:39]} Bxa6 {[%emt 0:06:11]} 19. Qxa6 {[%emt 0:03:26]} Rd6 {[%emt 0:00:04]} 20. Qa5 {[%emt 0:02:50]} Qb7 {[%emt 0:00:26]} 21. Qe1 {[%emt 0:00:52]} Rc8 {[%emt 0:04:57]} 22. Nd2 {[%emt 0:03:03]} f5 {[%emt 0:09:55]} 23. Nxe4 {[%emt 0:03:52]} fxe4 {[%emt 0:00:02]} 24. Rc2 {[%emt 0:00:58]} d4 {[%emt 0:04:30]} 25. exd4 {[%emt 0:01:06]} Rxd4 {[%emt 0:00:33]} 26. Rdc1 {[%emt 0:00:56]} Qd5 {[%emt 0:04:07]} 27. Rc4 {[%emt 0:04:40]} Rd2 {[%emt 0:02:35]} 28. g3 {[%emt 0:05:39]} Rf8 {[%emt 0:02:20]} 29. Rxc5 {[%emt 0:14:00]} Qd4 {[%emt 0:03:20]} 30. R5c4 {[%emt 0:01:23]} Qxf2+ {[%emt 0:00:49]} 31. Qxf2 {[%emt 0:00:05]} Rfxf2 {[%emt 0:00:07]} 32. Rxe4 {[%emt 0:00:05]} Rg2+ {[%emt 0:00:46]} 33. Kf1 {[%emt 0:00:12]} Rxh2 {[%emt 0:01:30]} 34. Rh4 {[%emt 0:00:33]} Rhf2+ {[%emt 0:02:17]} 35. Ke1 {[%emt 0:00:13]} Rde2+ {[%emt 0:00:14]} 36. Kd1 {[%emt 0:00:06]} Rxa2 {[%emt 0:00:18]} 37. Ke1 {[%emt 0:00:14]} Rg2 {[%emt 0:00:47]} 38. Kf1 {[%emt 0:00:12]} Rxg3 {[%emt 0:00:15]} 39. b4 {[%emt 0:00:15]} Kh7 {[%emt 0:00:57]} 40. b5 {[%emt 0:00:47]} Rb3 {[%emt 0:00:58]} 41. Rh5 {[%emt 0:00:11]} Ra5 {[%emt 0:01:03]} 42. Rcc5 {[%emt 0:00:31]} Ra1+ {[%emt 0:00:57]} 43. Ke2 {[%emt 0:00:07]} Ra2+ {[%emt 0:00:03]} 44. Kd1 {[%emt 0:00:05]} Rg3 {[%emt 0:00:10]} 45. Rh1 {[%emt 0:00:14]} Ra1+ {[%emt 0:01:51]} 46. Rc1 {[%emt 0:00:05]} Rxc1+ {[%emt 0:00:10]} 47. Kxc1 {[%emt 0:00:04]} Rb3 {[%emt 0:00:05]} 48. Rh5 {[%emt 0:00:09]} g5 {[%emt 0:00:07]} 0-1